[Event "Early-Titled-Tuesday-Blitz-May-14-2024"]
[Site "Chess.com"]
[Date "2024.05.14"]
[Round "11"]
[White "noblerone"]
[Black "agvega14"]
[Result "1-0"]
[WhiteElo "2505"]
[BlackElo "2177"]
[TimeControl "180+1"]
[EndTime "10:08:38 PDT"]
[Termination "noblerone won on time"]

1. d4 {[%clk 0:03:00.9]} 1... d5 {[%clk 0:02:59.1]} 2. Nf3 {[%clk 0:02:58.6]}
2... Nf6 {[%clk 0:02:58.3]} 3. Bg5 {[%clk 0:02:58.7]} 3... Ne4 {[%clk 0:02:58]}
4. Bf4 {[%clk 0:02:59.1]} 4... c5 {[%clk 0:02:57]} 5. e3 {[%clk 0:02:59.1]} 5...
Nc6 {[%clk 0:02:56.7]} 6. c3 {[%clk 0:02:59.2]} 6... e6 {[%clk 0:02:51.1]} 7.
Nbd2 {[%clk 0:02:58.3]} 7... Nxd2 {[%clk 0:02:50.2]} 8. Qxd2 {[%clk 0:02:58.2]}
8... Qb6 {[%clk 0:02:48]} 9. Bd3 {[%clk 0:02:53]} 9... Be7 {[%clk 0:02:47.5]}
10. O-O {[%clk 0:02:50.5]} 10... h6 {[%clk 0:02:47.1]} 11. e4 {[%clk 0:02:40.6]}
11... dxe4 {[%clk 0:02:44.2]} 12. Bxe4 {[%clk 0:02:40.7]} 12... cxd4 {[%clk
0:02:40.7]} 13. Nxd4 {[%clk 0:02:36.2]} 13... Nxd4 {[%clk 0:02:38.8]} 14. cxd4
{[%clk 0:02:35.1]} 14... O-O {[%clk 0:02:29.8]} 15. Rad1 {[%clk 0:02:24.8]}
15... Bf6 {[%clk 0:02:23.5]} 16. Bb1 {[%clk 0:02:23.3]} 16... Rd8 {[%clk
0:02:00.9]} 17. Be3 {[%clk 0:02:12.7]} 17... Qb5 {[%clk 0:01:45.3]} 18. Qc2
{[%clk 0:02:00.6]} 18... g6 {[%clk 0:01:34.6]} 19. Bxh6 {[%clk 0:01:56.1]} 19...
Bd7 {[%clk 0:01:31.6]} 20. Be3 {[%clk 0:01:16]} 20... Bc6 {[%clk 0:01:29]} 21.
f3 {[%clk 0:01:00.9]} 21... Rac8 {[%clk 0:01:28.1]} 22. Qf2 {[%clk 0:01:00.4]}
22... Qh5 {[%clk 0:01:20.4]} 23. b3 {[%clk 0:00:58.4]} 23... Rd5 {[%clk
0:01:17.9]} 24. Be4 {[%clk 0:00:58]} 24... Rd6 {[%clk 0:01:14.5]} 25. Bxc6
{[%clk 0:00:57.2]} 25... Rdxc6 {[%clk 0:01:11]} 26. Rd2 {[%clk 0:00:47.3]} 26...
Rc1 {[%clk 0:01:02.6]} 27. Rfd1 {[%clk 0:00:47.4]} 27... Qf5 {[%clk 0:00:54]}
28. g3 {[%clk 0:00:34.9]} 28... Rxd1+ {[%clk 0:00:46.9]} 29. Rxd1 {[%clk
0:00:34]} 29... Rc2 {[%clk 0:00:46.5]} 30. Rd2 {[%clk 0:00:32.4]} 30... Rc1+
{[%clk 0:00:46.5]} 31. Kg2 {[%clk 0:00:32.1]} 31... Qb1 {[%clk 0:00:44.2]} 32.
Rb2 {[%clk 0:00:20.6]} 32... Qa1 {[%clk 0:00:30.4]} 33. Bxc1 {[%clk 0:00:20.1]}
33... Qxc1 {[%clk 0:00:31.1]} 34. Rd2 {[%clk 0:00:20.2]} 34... Qc6 {[%clk
0:00:27]} 35. Qe2 {[%clk 0:00:19]} 35... Qd5 {[%clk 0:00:26.5]} 36. Qe4 {[%clk
0:00:18.6]} 36... Qd7 {[%clk 0:00:25.5]} 37. f4 {[%clk 0:00:19]} 37... Kg7
{[%clk 0:00:24.2]} 38. d5 {[%clk 0:00:18.5]} 38... exd5 {[%clk 0:00:21.5]} 39.
Qxd5 {[%clk 0:00:19.4]} 39... Qc7 {[%clk 0:00:20.2]} 40. h4 {[%clk 0:00:18.2]}
40... Qc3 {[%clk 0:00:17.6]} 41. Qd3 {[%clk 0:00:17.9]} 41... Qc1 {[%clk
0:00:16.7]} 42. Re2 {[%clk 0:00:16.8]} 42... Qc6+ {[%clk 0:00:16.4]} 43. Qf3
{[%clk 0:00:16.9]} 43... Qa6 {[%clk 0:00:15.5]} 44. h5 {[%clk 0:00:15.7]} 44...
Qd6 {[%clk 0:00:12.5]} 45. hxg6 {[%clk 0:00:15.3]} 45... fxg6 {[%clk 0:00:12.5]}
46. Qe4 {[%clk 0:00:15.3]} 46... b6 {[%clk 0:00:11.7]} 47. Qb7+ {[%clk
0:00:15.1]} 47... Kh6 {[%clk 0:00:10.1]} 48. Qe4 {[%clk 0:00:13.3]} 48... Kg7
{[%clk 0:00:06.1]} 49. a4 {[%clk 0:00:11.8]} 49... a5 {[%clk 0:00:05.7]} 50. Qc4
{[%clk 0:00:10.4]} 50... Qd1 {[%clk 0:00:03.7]} 51. Qe4 {[%clk 0:00:08.8]} 51...
Qd6 {[%clk 0:00:02.1]} 52. Qf3 {[%clk 0:00:06.1]} 52... Qc5 {[%clk 0:00:00.6]}
53. g4 {[%clk 0:00:06]} 1-0

[Event "Early-Titled-Tuesday-Blitz-May-14-2024"]
[Site "Chess.com"]
[Date "2024.05.14"]
[Round "11"]
[White "dontcatchmeifyoucant"]
[Black "SlavenPastar"]
[Result "0-1"]
[WhiteElo "2436"]
[BlackElo "2627"]
[TimeControl "180+1"]
[EndTime "10:08:44 PDT"]
[Termination "SlavenPastar won by checkmate"]

1. e4 {[%clk 0:03:00.9]} 1... b6 {[%clk 0:02:59.7]} 2. d4 {[%clk 0:02:59.5]}
2... Bb7 {[%clk 0:02:59.6]} 3. Bd3 {[%clk 0:02:59.4]} 3... Nf6 {[%clk
0:02:59.9]} 4. Nd2 {[%clk 0:02:59]} 4... e6 {[%clk 0:03:00.3]} 5. Ngf3 {[%clk
0:02:58.4]} 5... d5 {[%clk 0:02:59.8]} 6. e5 {[%clk 0:02:57.8]} 6... Ne4 {[%clk
0:03:00.3]} 7. O-O {[%clk 0:02:55.8]} 7... Be7 {[%clk 0:02:59.9]} 8. Qe2 {[%clk
0:02:50]} 8... Nxd2 {[%clk 0:02:59.7]} 9. Bxd2 {[%clk 0:02:47.9]} 9... c5 {[%clk
0:03:00.6]} 10. c3 {[%clk 0:02:47.5]} 10... a5 {[%clk 0:03:01.1]} 11. Ne1 {[%clk
0:02:45.3]} 11... Ba6 {[%clk 0:03:00.3]} 12. Bxa6 {[%clk 0:02:41]} 12... Nxa6
{[%clk 0:03:00]} 13. Qb5+ {[%clk 0:02:36.9]} 13... Qd7 {[%clk 0:03:00]} 14. Qxb6
{[%clk 0:02:34.9]} 14... O-O {[%clk 0:02:59.1]} 15. Qb3 {[%clk 0:02:26]} 15...
Rab8 {[%clk 0:02:57.5]} 16. Qc2 {[%clk 0:02:20.4]} 16... Rfc8 {[%clk 0:02:56.8]}
17. Nf3 {[%clk 0:02:10.7]} 17... Rb7 {[%clk 0:02:50.1]} 18. Rfc1 {[%clk
0:01:53.4]} 18... Nb8 {[%clk 0:02:43]} 19. Be3 {[%clk 0:01:44.2]} 19... c4
{[%clk 0:02:38.6]} 20. Rf1 {[%clk 0:01:34.3]} 20... a4 {[%clk 0:02:35.6]} 21. a3
{[%clk 0:01:33.7]} 21... Rb3 {[%clk 0:02:34.7]} 22. Nd2 {[%clk 0:01:33.5]} 22...
Rb6 {[%clk 0:02:33.8]} 23. f4 {[%clk 0:01:31.6]} 23... g6 {[%clk 0:02:33.7]} 24.
g4 {[%clk 0:01:30.8]} 24... Qb7 {[%clk 0:02:27.5]} 25. Rab1 {[%clk 0:01:30.5]}
25... Nc6 {[%clk 0:02:04.6]} 26. f5 {[%clk 0:01:30.3]} 26... Na5 {[%clk
0:02:00.7]} 27. fxe6 {[%clk 0:01:12.5]} 27... fxe6 {[%clk 0:01:59.7]} 28. Nf3
{[%clk 0:01:05.6]} 28... Rb8 {[%clk 0:01:45]} 29. Bc1 {[%clk 0:00:59.7]} 29...
Rb3 {[%clk 0:01:25.8]} 30. Qf2 {[%clk 0:00:46.1]} 30... Bxa3 {[%clk 0:01:23.6]}
31. Ng5 {[%clk 0:00:29.1]} 31... Qe7 {[%clk 0:01:20.4]} 32. Qh4 {[%clk
0:00:22.9]} 32... Rf8 {[%clk 0:00:34.4]} 33. Rxf8+ {[%clk 0:00:21.7]} 33... Kxf8
{[%clk 0:00:35]} 34. Nxh7+ {[%clk 0:00:21.7]} 34... Ke8 {[%clk 0:00:28.2]} 35.
Nf6+ {[%clk 0:00:21.7]} 35... Kd8 {[%clk 0:00:27.1]} 36. Bg5 {[%clk 0:00:19.7]}
36... Kc8 {[%clk 0:00:25.1]} 37. Nxd5 {[%clk 0:00:18.9]} 37... Qd7 {[%clk
0:00:20.5]} 38. Qh8+ {[%clk 0:00:17.9]} 38... Kb7 {[%clk 0:00:20.3]} 39. Nf6
{[%clk 0:00:17.3]} 39... Qc7 {[%clk 0:00:17.3]} 40. Qe8 {[%clk 0:00:10.1]} 40...
Bxb2 {[%clk 0:00:15.1]} 41. Qxe6 {[%clk 0:00:09]} 41... Bxc3 {[%clk 0:00:13.5]}
42. Rxb3+ {[%clk 0:00:07.6]} 42... cxb3 {[%clk 0:00:10.6]} 43. Nd5 {[%clk
0:00:05.5]} 43... Bxd4+ {[%clk 0:00:10.6]} 44. Kg2 {[%clk 0:00:03.8]} 44... Qc2+
{[%clk 0:00:09.5]} 45. Kf3 {[%clk 0:00:02.8]} 45... Qd3+ {[%clk 0:00:09]} 46.
Kg2 {[%clk 0:00:02.1]} 46... Qe2+ {[%clk 0:00:08.5]} 47. Kg3 {[%clk 0:00:02.4]}
47... Qf2+ {[%clk 0:00:06.1]} 48. Kh3 {[%clk 0:00:02.6]} 48... Qf3+ {[%clk
0:00:06.4]} 49. Kh4 {[%clk 0:00:03.2]} 49... Bf2# {[%clk 0:00:06.5]} 0-1

[Event "Early-Titled-Tuesday-Blitz-May-14-2024"]
[Site "Chess.com"]
[Date "2024.05.14"]
[Round "11"]
[White "Vincent_Vega95"]
[Black "Agibileg"]
[Result "1-0"]
[WhiteElo "2795"]
[BlackElo "2879"]
[TimeControl "180+1"]
[EndTime "10:08:50 PDT"]
[Termination "Vincent_Vega95 won by resignation"]

1. d4 {[%clk 0:03:00.9]} 1... Nf6 {[%clk 0:02:57.7]} 2. c4 {[%clk 0:03:01.4]}
2... g6 {[%clk 0:02:58]} 3. Nc3 {[%clk 0:03:01.9]} 3... Bg7 {[%clk 0:02:58.5]}
4. e4 {[%clk 0:03:02.1]} 4... d6 {[%clk 0:02:59]} 5. Be2 {[%clk 0:03:02.6]} 5...
O-O {[%clk 0:02:59.5]} 6. Be3 {[%clk 0:03:02.4]} 6... e5 {[%clk 0:02:59]} 7. d5
{[%clk 0:03:02.2]} 7... Na6 {[%clk 0:02:59.5]} 8. h4 {[%clk 0:03:02.5]} 8... Nc5
{[%clk 0:02:58.8]} 9. Qc2 {[%clk 0:03:02.3]} 9... c6 {[%clk 0:02:58.9]} 10. h5
{[%clk 0:03:00.8]} 10... cxd5 {[%clk 0:02:58.8]} 11. cxd5 {[%clk 0:03:01.2]}
11... Qa5 {[%clk 0:02:59.1]} 12. h6 {[%clk 0:02:59.7]} 12... Bh8 {[%clk
0:02:58.9]} 13. Bd2 {[%clk 0:02:59.8]} 13... Bd7 {[%clk 0:02:57.8]} 14. a3
{[%clk 0:02:47.4]} 14... Na6 {[%clk 0:02:46.1]} 15. Rc1 {[%clk 0:02:29.3]} 15...
Rfc8 {[%clk 0:02:45.9]} 16. Nf3 {[%clk 0:02:26.5]} 16... b5 {[%clk 0:02:31.3]}
17. Ng5 {[%clk 0:02:14.5]} 17... b4 {[%clk 0:02:27.8]} 18. axb4 {[%clk
0:02:14.8]} 18... Nxb4 {[%clk 0:02:27.8]} 19. Qb1 {[%clk 0:02:13.8]} 19... Rab8
{[%clk 0:02:23.6]} 20. O-O {[%clk 0:02:12.3]} 20... Qb6 {[%clk 0:02:11.5]} 21.
Be3 {[%clk 0:02:09.6]} 21... Qd8 {[%clk 0:02:01.9]} 22. Bxa7 {[%clk 0:02:01.6]}
22... Ra8 {[%clk 0:02:00.9]} 23. Be3 {[%clk 0:02:01.8]} 23... Ng4 {[%clk
0:01:57.9]} 24. Bxg4 {[%clk 0:01:59.7]} 24... Bxg4 {[%clk 0:01:58.8]} 25. f3
{[%clk 0:01:44.9]} 25... Bd7 {[%clk 0:01:57.2]} 26. g4 {[%clk 0:01:43.1]} 26...
Bf6 {[%clk 0:01:08.9]} 27. Nh3 {[%clk 0:01:42.9]} 27... Qa5 {[%clk 0:01:09.4]}
28. Nf2 {[%clk 0:01:34.4]} 28... Qd8 {[%clk 0:01:06]} 29. Nh3 {[%clk 0:01:32.6]}
29... Qa5 {[%clk 0:01:05.7]} 30. Rfd1 {[%clk 0:01:31.2]} 30... Bd8 {[%clk
0:01:05.5]} 31. Nf2 {[%clk 0:01:09.3]} 31... Bb6 {[%clk 0:01:05.5]} 32. Re1
{[%clk 0:01:08.7]} 32... Bxe3 {[%clk 0:01:02.2]} 33. Rxe3 {[%clk 0:01:09.6]}
33... Qd8 {[%clk 0:00:59.6]} 34. Ncd1 {[%clk 0:01:08.3]} 34... Qh4 {[%clk
0:00:50.7]} 35. Kg2 {[%clk 0:01:06.2]} 35... Qxh6 {[%clk 0:00:50.3]} 36. Rcc3
{[%clk 0:01:04.3]} 36... Qh4 {[%clk 0:00:32.4]} 37. Rxc8+ {[%clk 0:01:00.3]}
37... Rxc8 {[%clk 0:00:29.6]} 38. Rc3 {[%clk 0:01:00.5]} 38... Rb8 {[%clk
0:00:27.9]} 39. Rc7 {[%clk 0:00:57.6]} 39... Bb5 {[%clk 0:00:25.2]} 40. Qc1
{[%clk 0:00:57.7]} 40... Qd8 {[%clk 0:00:19.7]} 41. Ne3 {[%clk 0:00:46.5]} 41...
Ba4 {[%clk 0:00:14]} 42. Ra7 {[%clk 0:00:41.8]} 42... Bb5 {[%clk 0:00:11.8]} 43.
Qd2 {[%clk 0:00:41]} 43... Qb6 {[%clk 0:00:06.6]} 44. Ra3 {[%clk 0:00:40.8]}
44... Bd7 {[%clk 0:00:03.8]} 45. Kg3 {[%clk 0:00:40.2]} 45... Qd8 {[%clk
0:00:02.3]} 46. Rb3 {[%clk 0:00:39.6]} 46... Qb6 {[%clk 0:00:02.3]} 47. Nc2
{[%clk 0:00:38.8]} 47... Nxc2 {[%clk 0:00:01.8]} 48. Rxb6 {[%clk 0:00:38.7]}
48... Rxb6 {[%clk 0:00:02.4]} 49. Qxc2 {[%clk 0:00:39.2]} 49... Rb7 {[%clk
0:00:02.3]} 50. Qc3 {[%clk 0:00:39.2]} 50... Kf8 {[%clk 0:00:02.6]} 51. b4
{[%clk 0:00:39.7]} 51... Ke7 {[%clk 0:00:03.1]} 52. f4 {[%clk 0:00:40.1]} 52...
f6 {[%clk 0:00:03.3]} 53. g5 {[%clk 0:00:40.2]} 53... exf4+ {[%clk 0:00:03.1]}
54. Kxf4 {[%clk 0:00:40.5]} 54... fxg5+ {[%clk 0:00:03.7]} 55. Kxg5 {[%clk
0:00:41.4]} 55... Kd8 {[%clk 0:00:04.1]} 56. Ng4 {[%clk 0:00:37.6]} 56... Bxg4
{[%clk 0:00:03.6]} 57. Kxg4 {[%clk 0:00:37.9]} 57... Re7 {[%clk 0:00:03.9]} 58.
Kf4 {[%clk 0:00:37.4]} 58... Kd7 {[%clk 0:00:04]} 59. Qc6+ {[%clk 0:00:30.1]}
59... Kd8 {[%clk 0:00:04.4]} 60. Qxd6+ {[%clk 0:00:30.6]} 1-0

[Event "Early-Titled-Tuesday-Blitz-May-14-2024"]
[Site "Chess.com"]
[Date "2024.05.14"]
[Round "11"]
[White "edgarhay012"]
[Black "MatthewG-p4p"]
[Result "0-1"]
[WhiteElo "2653"]
[BlackElo "2852"]
[TimeControl "180+1"]
[EndTime "10:08:53 PDT"]
[Termination "MatthewG-p4p won by resignation"]

1. e4 {[%clk 0:03:00.9]} 1... e6 {[%clk 0:02:54.3]} 2. d4 {[%clk 0:03:00.1]}
2... d5 {[%clk 0:02:55.2]} 3. Nc3 {[%clk 0:02:59.8]} 3... Bb4 {[%clk 0:02:55.1]}
4. e5 {[%clk 0:02:59.3]} 4... Ne7 {[%clk 0:02:55.8]} 5. a3 {[%clk 0:02:54.5]}
5... Bxc3+ {[%clk 0:02:54.6]} 6. bxc3 {[%clk 0:02:55.4]} 6... c5 {[%clk
0:02:55.5]} 7. a4 {[%clk 0:02:55.7]} 7... Qc7 {[%clk 0:02:51.6]} 8. Nf3 {[%clk
0:02:54.3]} 8... h6 {[%clk 0:02:48.6]} 9. Bd3 {[%clk 0:02:53.5]} 9... b6 {[%clk
0:02:49]} 10. O-O {[%clk 0:02:51.6]} 10... Ba6 {[%clk 0:02:49]} 11. a5 {[%clk
0:02:49.5]} 11... Bxd3 {[%clk 0:02:48.7]} 12. cxd3 {[%clk 0:02:50.4]} 12... Nd7
{[%clk 0:02:36.7]} 13. axb6 {[%clk 0:02:49.5]} 13... Qxb6 {[%clk 0:02:35.2]} 14.
dxc5 {[%clk 0:02:48.2]} 14... Nxc5 {[%clk 0:02:34.1]} 15. Ba3 {[%clk 0:02:38.1]}
15... Qc7 {[%clk 0:02:24.3]} 16. Nd4 {[%clk 0:02:33.2]} 16... a6 {[%clk
0:02:14.3]} 17. Bb4 {[%clk 0:02:25.4]} 17... O-O {[%clk 0:02:09]} 18. f4 {[%clk
0:02:22]} 18... a5 {[%clk 0:02:02.4]} 19. Ba3 {[%clk 0:02:17.2]} 19... Rfc8
{[%clk 0:01:57.2]} 20. Kh1 {[%clk 0:02:05.2]} 20... Nf5 {[%clk 0:01:55.9]} 21.
Nxf5 {[%clk 0:01:24.3]} 21... exf5 {[%clk 0:01:56.8]} 22. Bxc5 {[%clk
0:00:59.5]} 22... Qxc5 {[%clk 0:01:56.9]} 23. Qb3 {[%clk 0:01:00.1]} 23... Qxc3
{[%clk 0:01:46]} 24. Qxd5 {[%clk 0:00:58.6]} 24... Rd8 {[%clk 0:01:46.6]} 25.
Qb5 {[%clk 0:00:43.3]} 25... Qxd3 {[%clk 0:01:36]} 26. Qxd3 {[%clk 0:00:19.8]}
26... Rxd3 {[%clk 0:01:36.9]} 27. Ra4 {[%clk 0:00:19.7]} 27... Kf8 {[%clk
0:01:22.1]} 28. h3 {[%clk 0:00:18.1]} 28... Ke7 {[%clk 0:01:20.7]} 29. Rfa1
{[%clk 0:00:17.8]} 29... Rd5 {[%clk 0:01:21.2]} 30. Rc4 {[%clk 0:00:16.5]} 30...
Ra7 {[%clk 0:01:21.1]} 31. Kh2 {[%clk 0:00:14.7]} 31... g5 {[%clk 0:01:19.1]}
32. Kg3 {[%clk 0:00:13]} 32... Rb5 {[%clk 0:01:07.5]} 33. Ra3 {[%clk 0:00:10]}
33... Ra6 {[%clk 0:00:58.2]} 34. Kf3 {[%clk 0:00:08.8]} 34... Rab6 {[%clk
0:00:54.3]} 35. Rcc3 {[%clk 0:00:01.6]} 35... Rd5 {[%clk 0:00:50.3]} 36. Rc7+
{[%clk 0:00:01.7]} 36... Ke6 {[%clk 0:00:50.2]} 37. Rcc3 {[%clk 0:00:02.3]}
37... Rb1 {[%clk 0:00:49.2]} 38. g3 {[%clk 0:00:02.7]} 38... Rf1+ {[%clk
0:00:45.8]} 39. Ke2 {[%clk 0:00:02.7]} 39... Rb1 {[%clk 0:00:33.7]} 40. Rc6+
{[%clk 0:00:03.1]} 40... Ke7 {[%clk 0:00:34.4]} 41. Rc7+ {[%clk 0:00:03.3]}
41... Kf8 {[%clk 0:00:33.8]} 42. Rac3 {[%clk 0:00:03.7]} 42... Rb2+ {[%clk
0:00:29.9]} 43. Ke3 {[%clk 0:00:04]} 43... Rdd2 {[%clk 0:00:26.9]} 44. Ra7
{[%clk 0:00:04.1]} 44... Re2+ {[%clk 0:00:27]} 45. Kd3 {[%clk 0:00:04.5]} 45...
Rbd2+ {[%clk 0:00:27]} 46. Kc4 {[%clk 0:00:05.1]} 46... Re4+ {[%clk 0:00:21.2]}
47. Kb5 {[%clk 0:00:05.3]} 47... Rb2+ {[%clk 0:00:14.8]} 48. Kxa5 {[%clk
0:00:05.5]} 48... gxf4 {[%clk 0:00:15.5]} 49. gxf4 {[%clk 0:00:04.6]} 49... Ra2+
{[%clk 0:00:09.6]} 50. Kb6 {[%clk 0:00:04.5]} 50... Rxa7 {[%clk 0:00:09.6]} 51.
Kxa7 {[%clk 0:00:05.4]} 51... Rxf4 {[%clk 0:00:10.4]} 52. Kb6 {[%clk 0:00:02.5]}
52... Re4 {[%clk 0:00:11.1]} 53. Kc6 {[%clk 0:00:02.9]} 53... Rxe5 {[%clk
0:00:10.9]} 54. Kd6 {[%clk 0:00:03.6]} 54... Re6+ {[%clk 0:00:11.2]} 55. Kd5
{[%clk 0:00:03.7]} 55... Kg7 {[%clk 0:00:12.1]} 56. Rg3+ {[%clk 0:00:03.8]}
56... Kf6 {[%clk 0:00:12.7]} 57. Rg8 {[%clk 0:00:04.5]} 57... f4 {[%clk
0:00:12.6]} 58. Kd4 {[%clk 0:00:04.5]} 58... Kf5 {[%clk 0:00:12.4]} 59. Kd3
{[%clk 0:00:05.1]} 59... f3 {[%clk 0:00:12.7]} 60. Kd2 {[%clk 0:00:04.7]} 60...
f2 {[%clk 0:00:11]} 0-1

[Event "Early-Titled-Tuesday-Blitz-May-14-2024"]
[Site "Chess.com"]
[Date "2024.05.14"]
[Round "11"]
[White "Dedic8"]
[Black "wonderfultime"]
[Result "0-1"]
[WhiteElo "2900"]
[BlackElo "3069"]
[TimeControl "180+1"]
[EndTime "10:08:55 PDT"]
[Termination "wonderfultime won by resignation"]

1. d4 {[%clk 0:03:00.9]} 1... d5 {[%clk 0:03:00.3]} 2. c4 {[%clk 0:03:01.4]}
2... c6 {[%clk 0:03:00.6]} 3. Nf3 {[%clk 0:03:02]} 3... Nf6 {[%clk 0:03:00.7]}
4. e3 {[%clk 0:03:02.3]} 4... a6 {[%clk 0:02:59.2]} 5. Nc3 {[%clk 0:02:54.1]}
5... Bf5 {[%clk 0:02:59.2]} 6. c5 {[%clk 0:02:49.4]} 6... Nbd7 {[%clk
0:02:58.2]} 7. Nh4 {[%clk 0:02:47.8]} 7... Bg6 {[%clk 0:02:27.1]} 8. Bd2 {[%clk
0:02:46.5]} 8... e5 {[%clk 0:02:26.8]} 9. Be2 {[%clk 0:02:39.4]} 9... Be7 {[%clk
0:02:24.6]} 10. O-O {[%clk 0:02:37.4]} 10... e4 {[%clk 0:02:09.1]} 11. Nxg6
{[%clk 0:02:28.8]} 11... hxg6 {[%clk 0:02:08.2]} 12. f4 {[%clk 0:02:23.2]} 12...
exf3 {[%clk 0:02:08.2]} 13. Bxf3 {[%clk 0:02:23.3]} 13... Nf8 {[%clk 0:02:04.7]}
14. b4 {[%clk 0:02:19.9]} 14... Ne6 {[%clk 0:02:05]} 15. Be1 {[%clk 0:02:15.2]}
15... Qd7 {[%clk 0:01:59.8]} 16. a4 {[%clk 0:02:14.3]} 16... Bd8 {[%clk
0:02:00.1]} 17. Bg3 {[%clk 0:01:46.8]} 17... Bc7 {[%clk 0:01:54.4]} 18. Bxc7
{[%clk 0:01:23.4]} 18... Qxc7 {[%clk 0:01:55.3]} 19. h3 {[%clk 0:01:21.5]} 19...
Ng5 {[%clk 0:01:50.9]} 20. Ne2 {[%clk 0:01:02.7]} 20... Kf8 {[%clk 0:01:33.4]}
21. Nf4 {[%clk 0:01:02.3]} 21... Re8 {[%clk 0:01:32.3]} 22. Ra3 {[%clk
0:01:02.5]} 22... Nge4 {[%clk 0:00:56.8]} 23. b5 {[%clk 0:00:52.7]} 23... g5
{[%clk 0:00:52.8]} 24. Nh5 {[%clk 0:00:45]} 24... g6 {[%clk 0:00:18.8]} 25. Bxe4
{[%clk 0:00:34.8]} 25... Nxe4 {[%clk 0:00:18.2]} 26. Nf6 {[%clk 0:00:35.4]}
26... Nxf6 {[%clk 0:00:17.8]} 27. Rxf6 {[%clk 0:00:35.2]} 27... Kg7 {[%clk
0:00:17.6]} 28. Qf1 {[%clk 0:00:27]} 28... g4 {[%clk 0:00:17.5]} 29. Ra2 {[%clk
0:00:18.1]} 29... gxh3 {[%clk 0:00:09.9]} 30. Raf2 {[%clk 0:00:16.4]} 30... Re7
{[%clk 0:00:10.6]} 31. bxa6 {[%clk 0:00:14.7]} 31... bxa6 {[%clk 0:00:10.7]} 32.
R2f3 {[%clk 0:00:07]} 32... hxg2 {[%clk 0:00:09.5]} 33. Qxg2 {[%clk 0:00:07.4]}
33... Qb7 {[%clk 0:00:06.9]} 34. Qg5 {[%clk 0:00:05.7]} 34... Qb1+ {[%clk
0:00:05.8]} 35. Rf1 {[%clk 0:00:06.1]} 35... Qe4 {[%clk 0:00:06.5]} 36. R1f3
{[%clk 0:00:06]} 36... Qh4 {[%clk 0:00:05.9]} 37. Qxh4 {[%clk 0:00:02.4]} 37...
Rxh4 {[%clk 0:00:06.8]} 38. Rxc6 {[%clk 0:00:03]} 38... Rg4+ {[%clk 0:00:06.8]}
39. Kf2 {[%clk 0:00:03.2]} 39... Re8 {[%clk 0:00:06.8]} 40. Rxa6 {[%clk
0:00:02.7]} 40... Rh8 {[%clk 0:00:07.5]} 41. Rg3 {[%clk 0:00:02.6]} 41... Rh2+
{[%clk 0:00:07.6]} 42. Kf3 {[%clk 0:00:03.1]} 42... Rgh4 {[%clk 0:00:08.1]} 43.
Rd6 {[%clk 0:00:03.1]} 43... Rh5 {[%clk 0:00:08.2]} 44. c6 {[%clk 0:00:02.8]}
44... Rf5+ {[%clk 0:00:08.7]} 45. Kg4 {[%clk 0:00:02.8]} 45... Rff2 {[%clk
0:00:06.1]} 46. Rd7 {[%clk 0:00:03.2]} 46... Kf8 {[%clk 0:00:04.3]} 47. Rf3
{[%clk 0:00:03.6]} 47... Rhg2+ {[%clk 0:00:04.3]} 48. Kf4 {[%clk 0:00:04.1]}
48... g5+ {[%clk 0:00:03.9]} 49. Ke5 {[%clk 0:00:04.5]} 49... Rxf3 {[%clk
0:00:04.5]} 50. c7 {[%clk 0:00:04.1]} 50... Rxe3+ {[%clk 0:00:04.7]} 51. Kxd5
{[%clk 0:00:04.2]} 51... Re8 {[%clk 0:00:05.1]} 52. Rd8 {[%clk 0:00:04.3]} 52...
Rc2 {[%clk 0:00:05.9]} 53. Kd6 {[%clk 0:00:04.8]} 53... g4 {[%clk 0:00:06.3]}
54. d5 {[%clk 0:00:03.6]} 54... g3 {[%clk 0:00:06.3]} 55. Kd7 {[%clk 0:00:04.3]}
55... Rxc7+ {[%clk 0:00:06.6]} 56. Kxc7 {[%clk 0:00:04.5]} 56... Rxd8 {[%clk
0:00:07.4]} 57. Kxd8 {[%clk 0:00:03.6]} 57... g2 {[%clk 0:00:08.3]} 0-1